bitfinex-derivatives/quotes_SOLF0:USTF0_20240924
["timestamp","ask_amount","ask_price","bid_price","bid_amount"]
[1727147120830,18.1501,146.63,146.58,3.4111]
[1727147125226,18.1501,146.63,146.59,3.411]
[1727147126133,3.4104,146.62,146.59,3.411]
[1727147126326,3.45153965,146.61,146.59,3.411]
[1727147127628,3.4104,146.62,146.59,3.411]
[1727147128134,3.45324232,146.61,146.59,3.411]
[1727147129141,3.45324232,146.61,146.49,81.92]
[1727147129330,14.74,146.63,146.53,14.74]
[1727147129526,14.74,146.59,146.49,81.92]
[1727147129731,14.74,146.58,146.55,3.4119]
[1727147130037,14.74,146.58,146.49,96.66]
[1727147131338,14.74,146.56,146.48,4.0281]
[1727147132526,18.07310575,146.56,146.48,4.0281]
[1727147133032,18.07310575,146.56,146.52,3.4126]
[1727147134734,3.33310575,146.56,146.49,14.74]
[1727147136634,3.33310575,146.56,146.52,3.4125]
[1727147136835,3.33310575,146.56,146.49,14.74]
[1727147137029,14.74,146.6,146.51,14.74]
[1727147137235,14.74,146.6,146.54,3.412]
[1727147137634,3.4111,146.59,146.54,3.412]
[1727147139844,3.4111,146.59,146.55,3.4119]
[1727147142044,3.4111,146.59,146.56,3.4116]
[1727147142441,9.44,146.57,146.56,3.4116]
[1727147143144,9.44,146.57,146.55,3.4119]
[1727147144844,9.44,146.56,146.49,9.44]
[1727147145142,9.44,146.56,146.45,81.92]
[1727147145143,9.44,146.51,146.45,81.92]
[1727147145342,9.44,146.49,146.45,91.36]
[1727147145943,9.44,146.49,146.47,3.4136]
[1727147146140,9.44,146.5,146.46,9.44]
[1727147146347,14.75,146.53,146.49,3.4132]
[1727147147154,224.0,146.65,146.53,3.4122]
[1727147147358,14.75,146.59,146.46,4.136]
[1727147147556,14.75,146.59,146.49,14.75]
[1727147147754,3.4114,146.58,146.52,3.4125]
[1727147147954,3.44121531,146.57,146.52,3.4125]
[1727147149657,3.44121531,146.57,146.53,3.4124]
[1727147151056,14.75,146.55,146.46,4.136]
[1727147151264,14.75,146.55,146.46,18.886]
[1727147151463,18.1621,146.55,146.5,3.4129]
[1727147151657,18.1621,146.55,146.46,18.886]
[1727147153765,18.1621,146.55,146.51,3.4128]
[1727147154867,3.4123,146.54,146.49,3.4133]
[1727147155166,14.75,146.53,146.46,4.136]
[1727147156363,14.75,146.51,146.43,150.58046034]
[1727147156865,14.75,146.51,146.47,3.4137]
[1727147158370,14.75,146.51,146.48,3.4135]
[1727147160975,14.75,146.51,146.43,68.64046034]
[1727147161267,14.75,146.49,146.43,68.64046034]
[1727147161459,18.1633,146.49,146.45,3.4141]
[1727147161666,18.1633,146.49,146.43,68.64046034]
[1727147161667,14.75,146.49,146.43,68.64046034]
[1727147161868,14.75,146.51,146.43,68.64046034]
[1727147162260,14.75,146.53,146.44,14.75]
[1727147162771,18.13172006,146.53,146.49,3.4131]
[1727147163168,3.4127,146.52,146.47,3.4136]
[1727147164069,18.163,146.51,146.46,3.4139]
[1727147165964,14.75,146.51,146.47,3.4137]
[1727147166276,14.75,146.51,146.43,68.64046034]
[1727147166876,3.38172006,146.53,146.44,14.75]
[1727147167171,3.4125,146.53,146.48,3.4134]
[1727147167368,3.34436828,146.52,146.48,3.4134]
[1727147168273,3.34436828,146.52,146.48,1.2599]
[1727147168473,14.75,146.49,146.36,4.0658]
[1727147168680,14.75,146.44,146.36,4.0658]
[1727147169376,3.37408233,146.43,146.38,3.4157]
[1727147169880,6.78888233,146.43,146.38,3.4157]
[1727147170174,3.4148,146.43,146.37,3.4161]
[1727147170779,3.4159091,146.42,146.37,3.4161]
[1727147170970,3.4159091,146.42,146.38,3.4158]
[1727147172379,3.4148,146.43,146.38,3.4158]
[1727147172686,14.75,146.41,146.31,14.75]
[1727147173476,6.88351627,146.4,146.34,3.4166]
[1727147173776,6.88351627,146.4,146.31,14.75]
[1727147173974,21.63351627,146.4,146.31,14.75]
[1727147174580,21.63351627,146.4,146.35,3.4165]
[1727147178788,14.75,146.36,146.3,2.7871]
[1727147179171,14.75,146.36,146.27,1.3833]
[1727147179385,14.75,146.31,146.24,2.7582]
[1727147179604,14.75,146.29,146.24,2.7582]
[1727147180286,18.20575519,146.29,146.24,2.7582]
[1727147180987,21.62385519,146.29,146.24,6.1772]
[1727147181186,18.20575519,146.29,146.24,2.7582]
[1727147181397,14.75,146.31,146.24,2.7582]
[1727147181582,18.1669,146.34,146.24,17.5082]
[1727147181888,14.75,146.34,146.24,17.5082]
[1727147182386,14.75,146.34,146.29,3.4178]
[1727147183384,18.1669,146.34,146.29,3.4178]
[1727147183886,14.75,146.34,146.3,3.4177]
[1727147184280,224.0,146.53,146.32,14.75]
[1727147184480,14.75,146.41,146.32,14.75]
[1727147184681,18.12744494,146.41,146.32,14.75]
[1727147184881,3.37744494,146.41,146.32,14.75]
[1727147185085,14.75,146.43,146.32,14.75]
[1727147185591,14.75,146.43,146.34,14.75]
[1727147185989,18.11500341,146.43,146.34,14.75]
[1727147186284,18.11500341,146.43,146.32,23.63]
[1727147186285,3.36500341,146.43,146.32,23.63]
[1727147186489,27.0445,146.45,146.38,3.4157]
[1727147186886,27.0445,146.45,146.32,23.63]
[1727147187086,30.45837559,146.45,146.32,23.63]
[1727147187289,30.45837559,146.45,146.39,3.4156]
[1727147188084,30.45837559,146.45,146.4,3.4154]
[1727147189386,23.63,146.42,146.31,3.9692]
[1727147190191,3.49999999,146.41,146.31,3.9692]
[1727147191091,3.49999999,146.41,146.37,3.4159]
[1727147193590,3.49999999,146.41,146.38,3.4158]
[1727147195194,23.63,146.42,146.38,3.4158]
[1727147195596,26.99089654,146.42,146.38,3.4158]
[1727147196196,30.40589654,146.42,146.38,3.4158]
[1727147199201,30.40589654,146.42,146.39,3.4156]
[1727147202000,26.99089654,146.42,146.41,3.4152]
[1727147202395,26.99089654,146.42,146.31,10.8041]
[1727147202598,3.4156,146.4,146.37,3.4161]
[1727147202904,23.63,146.39,146.31,3.9692]
[1727147203106,23.63,146.39,146.36,3.4162]
[1727147204004,23.63,146.39,146.37,3.416]
[1727147205706,23.63,146.39,146.38,3.4159]
[1727147206306,18.1854,146.4,146.38,3.4159]
[1727147207006,21.60294409,146.4,146.38,3.4159]
[1727147209107,18.18754409,146.4,146.38,3.4159]
[1727147211912,21.60304409,146.4,146.37,3.4161]
[1727147212108,18.18754409,146.4,146.37,3.4161]
[1727147213711,14.77,146.38,146.26,6.837]
[1727147213911,18.18754409,146.4,146.26,2.7645]
[1727147213912,14.77,146.33,146.26,2.7645]
[1727147214106,3.5936,146.39,146.29,3.4179]
[1727147214107,14.77,146.31,146.29,3.4179]
[1727147214307,14.77,146.31,146.26,2.7645]
[1727147214714,14.77,146.31,146.29,3.4178]
[1727147214916,3.47045547,146.32,146.26,2.7645]
[1727147215113,3.47045547,146.32,146.3,3.4176]
[1727147216521,14.77,146.33,146.31,3.4175]
[1727147217014,3.40411708,146.32,146.31,3.4175]
[1727147217212,29.54,146.33,146.15,6.8422]
[1727147217415,29.54,146.33,146.19,3.9988]
[1727147217416,14.77,146.27,146.19,3.9988]
[1727147217617,18.13787033,146.27,146.19,3.9988]
[1727147217813,18.13787033,146.27,146.24,3.4191]
[1727147218117,18.13787033,146.27,146.19,3.9988]
[1727147218319,14.77,146.29,146.2,14.77]
[1727147218815,14.77,146.31,146.22,14.77]
[1727147219211,14.77,146.31,146.27,3.4185]
[1727147220614,14.77,146.35,146.26,14.77]
[1727147220813,3.39764405,146.34,146.27,4.0001]
[1727147221013,3.39764405,146.34,146.3,3.4176]
[1727147221423,14.77,146.35,146.3,3.4176]
[1727147221717,14.77,146.35,146.27,4.0001]
[1727147222017,14.77,146.37,146.27,18.7701]
[1727147223218,18.1861,146.37,146.27,18.7701]
[1727147223612,18.1861,146.37,146.31,3.4173]
[1727147224518,18.1861,146.37,146.32,3.4173]
[1727147224710,3.1957,146.43,146.27,18.7701]
[1727147224913,14.77,146.38,146.27,18.7701]
[1727147225221,14.77,146.38,146.32,3.4171]
[1727147225622,18.1861,146.38,146.32,3.4171]
[1727147226617,3.4161,146.37,146.32,3.4171]
[1727147226818,3.4161,146.37,146.33,3.4171]
[1727147228718,3.4164,146.36,146.32,3.4172]
[1727147229718,3.4167,146.35,146.31,3.4173]
[1727147230224,18.1869,146.34,146.3,3.4177]
[1727147230611,18.1869,146.34,146.27,4.0001]
[1727147230819,18.1869,146.34,146.3,3.4176]
[1727147231020,14.77,146.34,146.3,3.4176]
[1727147231426,3.4167,146.35,146.27,4.0001]
[1727147232027,3.4167,146.35,146.31,3.4175]
[1727147232621,3.4167,146.35,146.3,3.4176]
[1727147233417,3.4171,146.33,146.29,3.418]
[1727147233618,14.77,146.31,146.27,2.6572]
[1727147233816,18.23588265,146.31,146.27,2.6572]
[1727147234217,3.4179,146.3,146.27,2.6572]
[1727147234614,18.23588265,146.31,146.27,2.6572]
[1727147235018,21.65358265,146.31,146.27,6.0757]
[1727147235832,3.4179,146.3,146.27,2.6572]
[1727147236126,18.23588265,146.31,146.26,3.4186]
[1727147236532,3.4178,146.3,146.27,3.4185]
[1727147240139,3.4178,146.3,146.26,3.4186]
[1727147240434,3.418,146.29,146.26,3.4186]
[1727147240732,3.4182,146.29,146.26,3.4186]
[1727147241429,3.4182,146.29,146.22,2.684]
[1727147242030,3.4182,146.29,146.25,3.4188]
[1727147243331,3.4182,146.29,146.22,2.684]
[1727147243332,14.77,146.29,146.22,2.684]
[1727147243529,14.77,146.27,146.22,2.684]
[1727147243928,14.77,146.27,146.24,3.4191]
[1727147244326,18.26079838,146.27,146.24,3.4191]
[1727147245430,18.1881,146.29,146.22,2.684]
[1727147245635,14.77,146.31,146.22,17.454]
[1727147246136,14.77,146.31,146.26,3.4185]
[1727147246435,14.77,146.31,146.22,2.684]
[1727147247436,18.18964835,146.33,146.25,3.4188]
[1727147247437,14.77,146.29,146.25,3.4188]
[1727147249328,14.77,146.29,146.26,3.4187]
[1727147249729,14.77,146.29,146.23,1.3163]
[1727147252035,14.77,146.29,146.26,3.4185]
[1727147259246,14.77,146.3,146.23,1.3163]
[1727147261545,14.77,146.32,146.24,14.77]
[1727147261743,80.15532735,146.35,146.26,14.77]
[1727147261937,3.34119187,146.34,146.27,1.4081]
[1727147262138,80.15532735,146.35,146.33,3.4171]
[1727147262345,3.46775217,146.34,146.33,3.4171]
[1727147262846,3.46775217,146.34,146.32,3.4172]
[1727147263441,3.46775217,146.34,146.27,1.4081]
[1727147263442,18.23775217,146.34,146.27,1.4081]
[1727147263645,14.77,146.34,146.27,1.4081]
[1727147263945,14.77,146.32,146.24,14.77]
[1727147264144,14.77,146.32,146.28,3.4181]
[1727147264747,18.19747804,146.32,146.29,3.418]
[1727147270149,18.19747804,146.32,146.23,17.4028]
[1727147270951,3.4176,146.31,146.23,17.4028]
[1727147271448,18.19747804,146.32,146.23,17.4028]
[1727147271649,21.61487804,146.32,146.28,3.4182]
[1727147272247,21.61487804,146.32,146.29,3.4179]
[1727147272443,18.19747804,146.32,146.23,17.4028]
[1727147272855,18.19747804,146.32,146.29,3.4178]
[1727147273154,18.19747804,146.32,146.25,14.77]
[1727147273155,3.42747804,146.32,146.25,14.77]
[1727147273355,3.36958752,146.33,146.32,3.4173]
[1727147273557,14.77,146.34,146.32,3.4173]
[1727147273753,80.15532735,146.35,146.26,14.77]
[1727147274154,3.43970175,146.34,146.26,14.77]
[1727147274353,9.46,146.33,146.28,9.46]
[1727147274553,9.46,146.33,146.24,6.8383]
[1727147274752,9.46,146.33,146.27,9.46]
[1727147276359,3.43970175,146.34,146.31,3.4175]
[1727147278558,3.43970175,146.34,146.32,3.4173]
[1727147280360,3.43970175,146.34,146.33,3.4171]
[1727147282153,3.43970175,146.34,146.32,7.5872]
[1727147282355,80.15532735,146.35,146.32,7.5872]
[1727147282860,3.40982148,146.34,146.32,7.5872]
[1727147284463,6.82662148,146.34,146.32,7.5872]
[1727147284660,3.40982148,146.34,146.32,7.5872]
[1727147286361,3.40982148,146.34,146.32,4.17]
[1727147287558,6.82682148,146.34,146.32,7.5873]
[1727147287759,3.417,146.34,146.32,7.5873]
[1727147288261,3.46624717,146.33,146.32,13.0473]
[1727147291062,3.46624717,146.33,146.32,9.63]
[1727147291063,18.1971,146.33,146.32,9.63]
[1727147291265,44.02310116,146.33,146.23,2.6328]
[1727147291565,14.78,146.29,146.27,3.4184]
[1727147292165,14.78,146.29,146.27,8.8784]
[1727147292364,18.1976,146.31,146.28,3.4182]
[1727147292964,18.1976,146.31,146.28,5.2982]
[1727147293165,21.56912332,146.31,146.28,5.2982]
[1727147296070,14.46956543,146.3,146.28,5.2982]
[1727147297064,3.4173,146.32,146.28,1.88]
[1727147297268,6.77309422,146.32,146.28,1.88]
[1727147297471,21.24284606,146.32,146.28,1.88]
[1727147297670,6.77309422,146.32,146.28,1.88]
[1727147297968,6.77309422,146.32,146.29,3.4179]
[1727147298368,9.45,146.3,146.29,3.4179]
[1727147299774,9.45,146.3,146.28,5.2981]
[1727147301174,9.45,146.29,146.28,1.88]
[1727147303478,9.45,146.29,146.28,5.2982]
[1727147306972,9.45,146.29,146.28,1.88]
[1727147309180,14.47946364,146.31,146.28,5.2982]
[1727147309377,1.7931,146.39,146.28,11.33]
[1727147309583,9.45,146.34,146.29,12.0994]
[1727147309786,12.8721509,146.34,146.31,3.4173]
[1727147309988,17.90034708,146.34,146.31,3.4173]
[1727147310284,9.45,146.33,146.31,3.4173]
[1727147311572,9.45,146.33,146.29,12.0994]
[1727147311885,9.45,146.31,146.29,2.6494]
[1727147312492,9.45,146.31,146.29,6.0673]
[1727147312675,9.45,146.31,146.29,2.6494]
[1727147313076,9.45,146.31,146.3,3.4178]
[1727147313887,9.45,146.31,146.29,6.0673]
[1727147315179,9.45,146.3,146.29,2.6494]
[1727147315779,9.45,146.3,146.28,1.88]
[1727147316485,9.45,146.3,146.28,5.2981]
[1727147318779,9.45,146.3,146.28,10.7581]
[1727147321876,9.45,146.29,146.28,10.7581]
[1727147322492,9.45,146.29,146.28,7.34]
[1727147324897,9.45,146.29,146.19,4.098]
[1727147325190,9.45,146.24,146.2,9.45]
[1727147325388,9.45,146.24,146.23,3.4194]
[1727147326483,6.8307,146.41,146.23,9.45]
[1727147326682,9.45,146.3,146.25,9.45]
[1727147326888,9.45,146.3,146.27,9.45]
[1727147327196,9.45,146.3,146.28,3.4181]
[1727147327689,3.36411519,146.31,146.27,9.45]
[1727147327888,9.45,146.32,146.28,9.45]
[1727147328087,3.45475066,146.31,146.29,3.4179]
[1727147329287,12.90475066,146.31,146.26,2.8642]
[1727147329490,9.45,146.3,146.26,2.8642]
[1727147330286,9.45,146.3,146.27,3.4184]
[1727147336093,9.45,146.28,146.22,1.34]
[1727147336294,9.45,146.28,146.23,9.45]
[1727147337002,12.8684,146.28,146.24,3.419]
[1727147339704,9.45,146.25,146.22,1.34]
[1727147340007,9.45,146.23,146.1,9.45]
[1727147340315,9.45,146.18,146.12,12.8719]
[1727147340606,9.45,146.21,146.15,9.45]
[1727147341297,9.45,146.19,146.15,3.4211]
[1727147341503,9.45,146.19,146.14,9.45]
[1727147341698,3.50516875,146.2,146.14,9.45]
[1727147341900,9.45,146.21,146.15,9.45]
[1727147342100,9.45,146.21,146.16,2.6759]
[1727147342299,14.79,146.23,146.16,2.6759]
[1727147343004,18.2096,146.23,146.17,3.4207]
[1727147345004,14.79,146.23,146.16,2.6759]
[1727147346107,3.4201,146.21,146.16,6.0969]
[1727147346604,18.2101,146.21,146.16,6.0969]
[1727147347304,3.4201,146.2,146.16,6.0969]
[1727147348299,3.4201,146.2,146.15,1.3006]
[1727147348300,18.2104,146.19,146.1,14.79]
[1727147349109,3.4208,146.18,146.1,14.79]
[1727147349707,3.4208,146.18,146.13,3.4216]
[1727147350408,3.4208,146.18,146.14,3.4215]
[1727147351912,18.2104,146.19,146.14,3.4215]
[1727147353511,14.79,146.19,146.08,4.1588]
[1727147353711,14.79,146.16,146.08,4.1588]
[1727147354514,3.4213,146.15,146.1,3.4223]
[1727147354710,3.40464129,146.14,146.1,3.4223]
[1727147354912,3.40464129,146.14,146.08,4.1588]
[1727147354913,18.19464129,146.14,146.08,4.1588]
[1727147355208,14.79,146.12,146.01,14.79]
[1727147355406,14.79,146.12,146.02,6.18399879]
[1727147355606,14.79,146.12,146.07,3.423]
[1727147355607,18.2121,146.12,146.07,3.423]
[1727147355815,14.79,146.12,146.07,3.423]
[1727147356114,18.2121,146.12,146.07,3.423]
[1727147356313,14.79,146.12,146.02,2.8218]
[1727147357117,14.79,146.12,146.02,17.6118]
[1727147358121,3.4223,146.11,146.02,17.6118]
[1727147358322,14.79,146.12,146.02,21.0419375]
[1727147358725,3.4221,146.12,146.04,14.79]
[1727147359417,3.4223,146.11,146.04,14.79]
[1727147361525,18.20182913,146.14,146.06,3.4232]
[1727147361822,14.79,146.12,146.02,21.0419375]
[1727147362022,3.4227,146.09,146.04,3.4237]
[1727147362217,14.79,146.1,146.02,2.8218]
[1727147362635,3.4231,146.08,146.03,3.4239]
[1727147362926,3.4231,146.08,146.02,2.8218]
[1727147363128,3.4227,146.09,146.04,3.4238]
[1727147366116,3.4229,146.08,146.04,3.4238]
[1727147366322,14.79,146.1,146.04,3.4238]
[1727147366517,14.79,146.1,146.05,3.4236]
[1727147366923,18.2126,146.1,146.05,3.4236]
[1727147369035,14.79,146.08,146.02,1.3873]
[1727147369231,14.79,146.06,145.97,14.79]
[1727147369726,14.79,146.08,145.99,14.79]
[1727147369926,14.79,146.06,145.96,17.4953]
[1727147370126,14.79,146.06,145.97,1.4027]
[1727147370332,14.79,146.08,145.97,1.4027]
[1727147370528,3.4233,146.07,146.02,3.4243]
[1727147370729,14.79,146.1,146.0,3.4171405]
[1727147371435,6.84610615,146.09,146.04,3.4238]
[1727147371836,224.0,146.18,146.01,14.79]
[1727147372133,14.79,146.12,146.03,14.79]
[1727147372334,18.25715078,146.12,146.01,18.15062204]
[1727147372526,18.25715078,146.12,146.04,3.4237]
[1727147372527,18.2125,146.1,146.04,3.4237]
[1727147372726,18.2125,146.1,146.02,2.7568]
[1727147373036,18.2125,146.1,146.04,3.4237]
[1727147373251,18.2125,146.1,146.02,2.7568]
[1727147373439,14.79,146.1,146.02,2.7568]
[1727147373635,14.79,146.1,146.05,3.4236]
[1727147373838,14.79,146.1,146.03,1.3277]
[1727147374135,18.2125,146.1,146.03,1.3277]
[1727147374529,3.45205479,146.11,146.03,1.3277]
[1727147374839,14.79,146.1,146.03,1.3277]
[1727147375027,18.28280821,146.1,146.03,1.3277]
[1727147375737,18.28280821,146.1,146.05,3.4234]
[1727147376134,18.28280821,146.1,146.06,3.4233]
[1727147376534,230.8385,146.24,146.05,14.79]
[1727147376735,14.79,146.15,146.05,14.79]
[1727147376936,14.79,146.15,146.09,3.4225]
[1727147377333,14.79,146.15,146.05,14.79]
[1727147377540,3.4215,146.14,146.05,14.79]
[1727147377839,3.43846311,146.13,146.05,14.79]
[1727147378240,18.2113,146.15,146.05,14.79]
[1727147378540,14.79,146.16,146.05,14.79]
[1727147378739,14.79,146.16,146.07,14.79]
[1727147379037,14.79,146.16,146.1,3.4223]
[1727147379437,14.79,146.14,146.08,2.619]
[1727147379644,14.79,146.12,146.03,1.3277]
[1727147379842,18.2121,146.12,146.03,1.3277]
[1727147380033,14.79,146.12,146.07,3.423]
[1727147380446,3.36014426,146.11,146.07,3.423]
[1727147380640,18.212,146.12,146.08,3.4228]
[1727147380849,18.29394501,146.12,146.04,14.79]
[1727147381040,14.79,146.2,146.04,14.79]
[1727147381242,18.2117,146.14,146.09,3.4225]
[1727147381441,3.46046241,146.13,146.09,3.4225]
[1727147382634,6.88226241,146.13,146.09,3.4225]
[1727147383643,3.422,146.12,146.09,3.4225]
[1727147384740,3.422,146.12,146.08,3.4227]
[1727147385134,3.4222,146.11,146.08,3.4227]
[1727147385537,18.2121,146.12,146.08,3.4227]
[1727147387944,3.4222,146.11,146.08,3.4227]
[1727147389448,14.79,146.12,146.03,1.3277]
[1727147390346,3.4223,146.11,146.03,1.3277]
[1727147390741,14.79,146.12,146.03,1.3277]
[1727147390943,14.79,146.12,146.06,3.4232]
[1727147391341,3.4224,146.11,146.06,3.4232]
[1727147391952,3.4224,146.11,146.07,3.4231]
[1727147392349,9.46,146.1,146.07,3.4231]
[1727147394255,9.46,146.09,146.07,3.4231]
[1727147397261,9.46,146.09,146.06,3.4233]
[1727147399462,3.4224,146.11,146.07,3.423]
[1727147399659,9.46,146.1,146.07,3.423]
[1727147400857,12.882,146.12,146.08,3.4229]
[1727147401957,12.882,146.12,146.06,9.46]
[1727147401958,12.882,146.12,146.09,3.4227]
[1727147402356,9.46,146.12,146.09,3.4227]
[1727147402865,3.46046241,146.13,146.08,9.46]
[1727147403061,9.46,146.16,146.1,9.46]
[1727147403460,9.46,146.16,146.12,3.4218]
[1727147403664,3.421,146.17,146.11,9.46]
[1727147403856,9.46,146.15,146.11,9.46]
[1727147404064,3.36699876,146.16,146.11,9.46]
[1727147404260,9.46,146.15,146.11,9.46]
[1727147404964,9.46,146.15,146.12,3.4218]
[1727147406371,9.46,146.14,146.09,9.46]
[1727147408062,9.46,146.14,146.11,3.422]
[1727147408466,9.46,146.14,146.09,9.46]
[1727147408663,9.46,146.14,146.12,3.4218]
[1727147408868,9.46,146.15,146.1,9.46]
[1727147409070,9.46,146.16,146.1,9.46]
[1727147409267,9.46,146.16,146.12,9.46]
[1727147410177,9.46,146.16,146.13,3.4217]
[1727147410867,9.46,146.14,146.12,3.4219]
[1727147411371,9.46,146.13,146.07,1.3336]
[1727147411667,9.46,146.08,146.02,12.2115]
[1727147412262,3.50164316,146.09,146.05,3.4235]
[1727147412766,14.79,146.1,146.03,3.424]
[1727147412964,14.79,146.1,146.02,2.7515]
[1727147413367,3.4228,146.09,146.02,2.7515]
[1727147414168,3.4228,146.09,146.05,3.4235]
[1727147414362,21.6874418,146.1,146.05,3.4235]
[1727147414568,18.2649418,146.1,146.02,2.7515]
[1727147415270,18.2649418,146.1,146.06,3.4232]
[1727147416167,18.2649418,146.1,146.07,3.4231]
[1727147416665,14.79,146.11,146.07,3.4231]
[1727147417476,21.63341613,146.11,146.06,3.4233]
[1727147417971,18.21101613,146.11,146.06,3.4233]
[1727147418569,3.4225,146.1,146.06,3.4233]
[1727147418774,18.21101613,146.11,146.07,3.4231]
[1727147419374,21.63331613,146.11,146.07,3.4231]
[1727147419581,18.21101613,146.11,146.07,3.4231]
[1727147420282,21.63331613,146.11,146.07,3.4231]
[1727147421479,3.4225,146.1,146.06,3.4233]
[1727147422678,3.4225,146.1,146.07,3.4231]
[1727147425378,21.63331613,146.11,146.07,3.4231]
[1727147427982,18.2123,146.11,146.08,3.4229]
[1727147428274,230.8402,146.21,146.03,14.79]
[1727147428474,14.79,146.16,146.12,3.4218]
[1727147428675,3.4637025,146.15,146.12,3.4218]
[1727147428877,6.8852025,146.15,146.05,14.79]
[1727147429074,14.79,146.17,146.07,14.79]
[1727147429279,18.2108,146.17,146.08,4.0718]
[1727147429577,3.41198499,146.16,146.08,4.0718]
[1727147429775,18.20198499,146.16,146.08,4.0718]
[1727147429979,3.4213,146.15,146.08,4.0718]
[1727147430282,3.4213,146.15,146.1,3.4222]
[1727147430478,3.4213,146.15,146.08,4.0718]
[1727147431773,3.4213,146.15,146.11,3.4222]
[1727147432285,9.47,146.13,146.11,3.4222]
[1727147433484,9.47,146.13,146.12,3.422]
[1727147433686,9.47,146.14,146.12,3.422]
[1727147434787,9.47,146.14,146.1,9.47]
[1727147435086,82.18,146.23,146.12,9.47]
[1727147435579,9.47,146.17,146.12,9.47]
[1727147435781,80.1893045,146.28,146.15,9.47]
[1727147435978,9.47,146.18,146.15,3.4211]
[1727147436682,9.47,146.19,146.17,3.4207]
[1727147436891,9.47,146.19,146.14,2.7773]
[1727147437385,9.47,146.19,146.16,3.4209]
[1727147437982,9.47,146.19,146.17,3.4208]
[1727147438290,9.47,146.2,146.17,3.4208]
[1727147441586,3.35477448,146.22,146.19,3.4203]
[1727147441886,9.47,146.22,146.17,9.47]
[1727147442191,9.47,146.22,146.2,3.42]
[1727147444296,9.47,146.22,146.17,9.47]
[1727147444793,9.47,146.22,146.2,3.4199]
[1727147445292,9.47,146.23,146.2,3.4199]
[1727147445496,9.47,146.23,146.18,9.47]
[1727147445497,9.47,146.23,146.21,3.4198]
[1727147445693,9.47,146.23,146.15,1.3306]
[1727147445997,9.47,146.23,146.21,3.4197]
[1727147449203,316.37575636,146.36,146.2,9.47]
[1727147449400,9.47,146.25,146.2,10.7738]
[1727147450104,9.47,146.25,146.23,3.4192]
[1727147450306,9.47,146.24,146.2,1.3038]
[1727147450807,3.35419417,146.26,146.2,1.3038]
[1727147451004,9.47,146.24,146.22,3.4195]
[1727147451296,9.47,146.24,146.2,1.3038]
[1727147451496,9.47,146.24,146.21,3.4197]
[1727147455110,9.47,146.24,146.22,3.4196]
[1727147459307,9.47,146.25,146.22,3.4196]
[1727147460417,9.47,146.24,146.19,1.3619]
[1727147461006,80.15612166,146.34,146.2,9.47]
[1727147461202,9.47,146.25,146.2,9.47]
[1727147461407,12.82020158,146.25,146.2,9.47]
[1727147461913,80.15612166,146.34,146.22,9.47]
[1727147462107,9.47,146.28,146.23,9.47]
[1727147462304,3.45112157,146.27,146.23,9.47]
[1727147462509,3.45112157,146.27,146.24,3.4191]
[1727147463816,3.45112157,146.27,146.25,3.4188]